bitfinex-derivatives/quotes_BNBF0:USTF0_20250709
["timestamp","ask_amount","ask_price","bid_price","bid_amount"]
[1752022465348,1.46692487,661.05,660.57,3.39985328]
[1752022465644,1.46692487,661.04,660.57,3.39985328]
[1752022465851,1.46692487,661.03,660.57,3.39985328]
[1752022466046,1.69493828,661.27,660.57,3.39985328]
[1752022466249,1.46898783,661.26,660.57,3.39985328]
[1752022466450,1.46898783,661.25,660.58,3.39985328]
[1752022466750,1.46898783,661.24,660.58,3.39985328]
[1752022466951,1.46898783,661.23,660.58,3.39985328]
[1752022467151,1.46898783,661.22,660.58,3.39985328]
[1752022467452,1.46898783,661.21,660.58,3.39985328]
[1752022467747,1.69493828,661.26,660.58,3.39985328]
[1752022467748,1.46898783,661.2,660.58,3.39985328]
[1752022467951,1.46898783,661.19,660.58,3.39985328]
[1752022468251,1.46898783,661.18,660.58,3.39985328]
[1752022468453,1.46898783,661.17,660.58,3.39985328]
[1752022468652,1.46898783,661.16,660.62,3.39985328]
[1752022468848,1.46898783,661.15,660.62,3.39985328]
[1752022469048,1.46898783,661.14,660.63,3.39985328]
[1752022469253,1.46898783,661.13,660.62,3.39985328]
[1752022469454,1.46898783,661.12,660.64,3.39985328]
[1752022469649,1.46898783,661.11,660.64,3.39985328]
[1752022469850,1.69493828,661.29,660.64,3.39985328]
[1752022469851,1.46898783,661.1,660.64,3.39985328]
[1752022470055,1.46898783,661.09,660.64,3.39985328]
[1752022470251,1.46898783,661.08,660.65,2.82]
[1752022470450,1.46898783,661.07,660.65,2.82]
[1752022470652,1.69493828,661.3,660.65,2.82]
[1752022470851,1.46874851,661.29,660.65,2.82]
[1752022471056,1.46874851,661.28,660.65,2.82]
[1752022471253,1.46874851,661.27,660.65,2.82]
[1752022471456,1.46874851,661.26,660.65,2.82]
[1752022471756,1.46874851,661.25,660.65,2.82]
[1752022471953,1.46874851,661.24,660.65,2.82]
[1752022472156,1.46874851,661.23,660.65,6.21985328]
[1752022472356,1.46874851,661.22,660.71,3.39985328]
[1752022472654,1.69493828,661.28,660.71,3.39985328]
[1752022472655,1.46874851,661.21,660.71,3.39985328]
[1752022472955,1.46874851,661.2,660.72,3.39985328]
[1752022473353,2.26875374,661.39,660.72,3.39985328]
[1752022473654,5.66742384,661.93,660.65,2.82]
[1752022473857,1.69948371,661.38,660.65,2.82]
[1752022474053,1.46845806,661.37,660.65,2.82]
[1752022474356,1.46845806,661.36,660.65,2.82]
[1752022474556,1.69948371,661.4,660.65,2.82]
[1752022474557,1.46845806,661.35,660.65,2.82]
[1752022474753,1.46845806,661.34,660.65,2.82]
[1752022474952,1.46845806,661.33,660.65,2.82]
[1752022475154,1.46845806,661.32,660.65,2.82]
[1752022475356,1.46845806,661.31,660.65,2.82]
[1752022475558,1.46845806,661.3,660.65,2.82]
[1752022475759,1.46845806,661.29,660.65,2.82]
[1752022476054,1.46845806,661.28,660.65,2.82]
[1752022476258,1.46845806,661.27,660.65,2.82]
[1752022476454,1.46845806,661.26,660.65,2.82]
[1752022476659,1.46845806,661.25,660.65,2.82]
[1752022476860,1.46845806,661.24,660.65,2.82]
[1752022477058,1.69948371,661.41,660.65,2.82]
[1752022477059,1.46845806,661.23,660.65,2.82]
[1752022477261,1.46845806,661.22,660.65,2.82]
[1752022477460,1.46845806,661.21,660.65,2.82]
[1752022477660,1.46845806,661.2,660.65,2.82]
[1752022477961,1.46845806,661.19,660.65,2.82]
[1752022478162,1.46845806,661.18,660.65,2.82]
[1752022478458,1.46845806,661.17,660.65,2.82]
[1752022478662,1.46845806,661.16,660.65,2.82]
[1752022478962,1.46845806,661.15,660.65,2.82]
[1752022479261,1.46845806,661.14,660.65,2.82]
[1752022479459,1.46845806,661.13,660.65,2.82]
[1752022479659,1.46780127,661.12,660.65,2.82]
[1752022479962,1.46780127,661.11,660.65,2.82]
[1752022480158,1.46780127,661.1,660.65,2.82]
[1752022480361,1.46780127,661.09,660.65,2.82]
[1752022480658,1.69871873,661.42,660.65,2.82]
[1752022480863,1.46770896,661.41,660.65,2.82]
[1752022481060,1.46770896,661.4,660.65,2.82]
[1752022481260,1.46770896,661.39,660.65,2.82]
[1752022481462,1.46770896,661.38,660.65,2.82]
[1752022481662,1.46770896,661.37,660.65,2.82]
[1752022481859,1.46770896,661.36,660.65,2.82]
[1752022482162,1.46770896,661.35,660.65,2.82]
[1752022482360,1.46770896,661.34,660.65,2.82]
[1752022482562,1.46770896,661.33,660.65,2.82]
[1752022482763,1.46770896,661.32,660.65,2.82]
[1752022482961,1.46770896,661.31,660.65,2.82]
[1752022483161,1.46770896,661.3,660.65,2.82]
[1752022483361,1.46770896,661.29,660.65,2.82]
[1752022483559,1.46770896,661.28,660.65,2.82]
[1752022483759,1.46770896,661.27,660.65,2.82]
[1752022483959,1.46770896,661.26,660.65,2.82]
[1752022484165,1.46770896,661.25,660.65,2.82]
[1752022484362,1.46770896,661.24,660.65,2.82]
[1752022484561,1.46770896,661.23,660.65,2.82]
[1752022484865,1.46770896,661.22,660.65,2.82]
[1752022485061,1.69871873,661.34,660.65,2.82]
[1752022485062,1.46770896,661.21,660.65,2.82]
[1752022485262,1.46770896,661.2,660.65,2.82]
[1752022485464,1.69871873,661.34,660.65,2.82]
[1752022485465,1.46770896,661.19,660.65,2.82]
[1752022485665,1.46770896,661.18,660.65,2.82]
[1752022485864,1.46770896,661.17,660.65,2.82]
[1752022486064,1.46770896,661.16,660.65,2.82]
[1752022486264,1.46770896,661.15,660.65,2.82]
[1752022486465,1.46770896,661.14,660.65,2.82]
[1752022486663,1.46770896,661.13,660.65,2.82]
[1752022486865,1.46770896,661.12,660.65,2.82]
[1752022487065,1.46770896,661.11,660.65,2.82]
[1752022487264,1.46770896,661.1,660.65,2.82]
[1752022487466,1.46770896,661.09,660.65,2.82]
[1752022487766,1.46770896,661.08,660.65,2.82]
[1752022488063,1.69871873,661.34,660.65,2.82]
[1752022488269,1.46730515,661.33,660.65,2.82]
[1752022488471,1.46730515,661.32,660.65,2.82]
[1752022488667,1.46730515,661.31,660.65,2.82]
[1752022488865,1.46730515,661.3,660.65,2.82]
[1752022489069,1.46730515,661.29,660.65,2.82]
[1752022489268,1.46730515,661.28,660.65,2.82]
[1752022489465,1.46730515,661.27,660.65,2.82]
[1752022489669,1.46730515,661.26,660.65,2.82]
[1752022489867,1.46730515,661.25,660.65,2.82]
[1752022490064,1.46730515,661.24,660.65,2.82]
[1752022490266,1.46730515,661.23,660.65,2.82]
[1752022490465,1.46730515,661.22,660.65,2.82]
[1752022490670,1.46730515,661.21,660.65,2.82]
[1752022490870,1.46730515,661.2,660.65,2.82]
[1752022491166,1.46730515,661.19,660.65,2.82]
[1752022491370,1.46730515,661.18,660.65,2.82]
[1752022491570,1.46730515,661.17,660.65,2.82]
[1752022491769,1.46730515,661.16,660.65,2.82]
[1752022491971,1.46730515,661.15,660.65,2.82]
[1752022492171,1.46730515,661.14,660.65,2.82]
[1752022492470,1.69871873,661.37,660.65,2.82]
[1752022492471,1.46730515,661.13,660.65,2.82]
[1752022492670,1.69871873,661.37,660.65,2.82]
[1752022492671,1.46730515,661.12,660.65,2.82]
[1752022492868,1.46730515,661.11,660.65,2.82]
[1752022493171,1.46730515,661.1,660.65,2.82]
[1752022493371,1.69871873,661.39,660.65,2.82]
[1752022493572,1.46712784,661.38,660.65,2.82]
[1752022493772,1.46712784,661.37,660.65,2.82]
[1752022493970,1.46712784,661.36,660.65,2.82]
[1752022494170,1.46712784,661.35,660.65,2.82]
[1752022494368,1.46712784,661.34,660.65,2.82]
[1752022494672,1.46712784,661.33,660.65,2.82]
[1752022494968,1.46712784,661.32,660.65,2.82]
[1752022495172,1.46712784,661.31,660.65,2.82]
[1752022495369,1.46712784,661.3,660.65,2.82]
[1752022495568,1.46712784,661.29,660.65,2.82]
[1752022495767,1.46712784,661.28,660.65,2.82]
[1752022495970,1.46712784,661.27,660.65,2.82]
[1752022496167,1.46712784,661.26,660.65,2.82]
[1752022496468,1.46712784,661.25,660.65,2.82]
[1752022496667,1.46712784,661.24,660.65,2.82]
[1752022496867,1.46712784,661.23,660.65,2.82]
[1752022497067,1.46712784,661.22,660.65,2.82]
[1752022497267,1.46712784,661.21,660.65,2.82]
[1752022497470,1.46712784,661.2,660.65,2.82]
[1752022497670,1.46712784,661.19,660.65,2.82]
[1752022497870,1.46712784,661.18,660.65,2.82]
[1752022498068,1.46712784,661.17,660.65,2.82]
[1752022498273,1.46712784,661.16,660.65,2.82]
[1752022498568,1.46712784,661.15,660.65,2.82]
[1752022498767,1.46712784,661.14,660.65,2.82]
[1752022499069,1.46712784,661.13,660.65,2.82]
[1752022499272,1.46712784,661.12,660.65,2.82]
[1752022499469,1.46712784,661.11,660.65,2.82]
[1752022499672,1.46712784,661.1,660.65,2.82]
[1752022499969,1.46712784,661.09,660.65,2.82]
[1752022500170,1.46712784,661.08,660.65,2.82]
[1752022500370,1.69871873,661.42,660.65,2.82]
[1752022500569,1.46707484,661.41,660.65,2.82]
[1752022500773,1.46707484,661.4,660.65,2.82]
[1752022500973,1.46707484,661.39,660.65,2.82]
[1752022501170,1.46707484,661.38,660.65,2.82]
[1752022501373,1.46707484,661.37,660.65,2.82]
[1752022501570,1.46707484,661.36,660.65,2.82]
[1752022501772,1.46707484,661.35,660.65,2.82]
[1752022501975,1.46707484,661.34,660.65,2.82]
[1752022502272,1.69871873,661.39,660.65,2.82]
[1752022502273,1.46707484,661.33,660.65,2.82]
[1752022502476,1.46707484,661.32,660.65,2.82]
[1752022502676,1.46707484,661.31,660.65,2.82]
[1752022502878,1.46707484,661.3,660.65,2.82]
[1752022503073,1.46707484,661.29,660.65,2.82]
[1752022503278,1.46707484,661.28,660.65,2.82]
[1752022503479,1.46707484,661.27,660.65,2.82]
[1752022503778,1.46707484,661.26,660.65,2.82]
[1752022503975,1.46707484,661.25,660.65,2.82]
[1752022504176,1.46707484,661.24,660.65,2.82]
[1752022504374,1.46707484,661.23,660.55,3.3916086]
[1752022504677,1.46707484,661.22,660.55,3.3916086]
[1752022504876,1.46707484,661.21,660.55,3.3916086]
[1752022505075,1.46707484,661.2,660.55,3.3916086]
[1752022505277,1.46707484,661.19,660.55,3.3916086]
[1752022505474,1.46707484,661.18,660.55,3.3916086]
[1752022505677,1.46707484,661.17,660.55,3.3916086]
[1752022505878,1.69871873,661.46,660.55,3.3916086]
[1752022506077,1.46711368,661.45,660.55,3.3916086]
[1752022506279,1.46711368,661.44,660.55,3.3916086]
[1752022506579,1.46711368,661.43,660.55,3.3916086]
[1752022506779,1.46711368,661.42,660.56,2.742]
[1752022506979,1.46711368,661.41,660.56,2.742]
[1752022507179,1.46711368,661.4,660.56,6.1336086]
[1752022507475,1.46711368,661.39,660.56,6.1336086]
[1752022507681,1.46711368,661.38,660.56,6.1336086]
[1752022507976,1.46711368,661.37,660.56,6.1336086]
[1752022508178,1.46711368,661.36,660.56,6.1336086]
[1752022508382,1.46711368,661.35,660.56,6.1336086]
[1752022508682,1.46711368,661.34,660.56,6.1336086]
[1752022508983,1.46711368,661.33,660.68,3.3916086]
[1752022509283,1.46711368,661.32,660.7,3.3916086]
[1752022509584,1.46711368,661.31,660.7,3.3916086]
[1752022509779,1.46711368,661.3,660.72,3.3916086]
[1752022510082,1.46711368,661.29,660.72,3.3916086]
[1752022510283,1.46711368,661.28,660.71,3.3916086]
[1752022510483,1.46711368,661.27,660.71,3.3916086]
[1752022510782,1.46711368,661.26,660.77,3.3916086]
[1752022510981,1.69871873,661.39,660.77,3.3916086]
[1752022510982,1.46711368,661.25,660.77,3.3916086]
[1752022511183,1.46711368,661.24,660.77,3.3916086]
[1752022511478,1.69871873,661.39,660.77,3.3916086]
[1752022511479,1.46711368,661.23,660.77,3.3916086]
[1752022511779,1.46711368,661.22,660.77,3.3916086]
[1752022511982,1.46711368,661.21,660.77,3.3916086]
[1752022512182,1.46711368,661.2,660.77,3.3916086]
[1752022512482,1.69871873,661.39,660.77,3.3916086]
[1752022512681,1.46730919,661.38,660.77,3.3916086]
[1752022512881,1.69871873,661.33,660.71,3.3916086]
[1752022513081,1.46730919,661.32,660.71,3.3916086]
[1752022513384,1.46730919,661.31,660.71,3.3916086]
[1752022513584,1.46730919,661.3,660.71,3.3916086]
[1752022513783,1.46730919,661.29,660.71,3.3916086]
[1752022513983,1.46730919,661.28,660.71,3.3916086]
[1752022514179,1.46730919,661.27,660.71,3.3916086]
[1752022514386,1.46730919,661.26,660.7,3.3916086]
[1752022514586,1.46730919,661.25,660.7,3.3916086]
[1752022514784,1.46730919,661.24,660.7,3.3916086]
[1752022514986,1.46730919,661.23,660.68,3.3916086]
[1752022515188,1.46730919,661.22,660.68,3.3916086]
[1752022515388,1.46730919,661.21,660.68,3.3916086]
[1752022515687,1.46730919,661.2,660.68,3.3916086]
[1752022515988,1.46730919,661.19,660.68,3.3916086]
[1752022516187,1.46730919,661.18,660.68,3.3916086]
[1752022516488,1.46730919,661.17,660.71,3.3916086]
[1752022516783,1.46730919,661.16,660.71,3.3916086]
[1752022516988,1.46730919,661.15,660.71,3.3916086]
[1752022517183,1.46730919,661.14,660.71,3.3916086]
[1752022517487,1.46730919,661.13,660.71,3.3916086]
[1752022517685,1.69871873,661.32,660.71,3.3916086]
[1752022517985,1.46757449,661.31,660.71,3.3916086]
[1752022518185,1.46757449,661.3,660.72,3.3916086]
[1752022518388,1.46757449,661.29,660.62,3.3916086]
[1752022518588,1.46757449,661.28,660.62,3.3916086]
[1752022518786,1.46757449,661.27,660.62,3.3916086]
[1752022518987,1.46757449,661.26,660.62,3.3916086]
[1752022519191,1.69871873,661.35,660.62,3.3916086]
[1752022519192,1.46757449,661.25,660.62,3.3916086]
[1752022519386,1.46757449,661.24,660.62,3.3916086]
[1752022519586,1.46757449,661.23,660.62,3.3916086]
[1752022519785,1.46757449,661.22,660.61,3.3916086]
[1752022520092,1.46757449,661.21,660.61,3.3916086]
[1752022520386,1.46757449,661.2,660.61,3.3916086]
[1752022520593,1.46757449,661.19,660.61,3.3916086]
[1752022520793,1.46757449,661.18,660.61,3.3916086]
[1752022520992,1.46757449,661.17,660.61,3.3916086]
[1752022521188,1.46757449,661.16,660.61,3.3916086]
[1752022521487,1.69871873,661.35,660.61,3.3916086]
[1752022521488,1.46757449,661.15,660.61,3.3916086]
[1752022521689,1.46757449,661.14,660.61,3.3916086]
[1752022521890,1.46757449,661.13,660.61,3.3916086]
[1752022522191,1.46757449,661.12,660.61,3.3916086]
[1752022522387,1.46757449,661.11,660.62,3.3916086]
[1752022522589,1.46757449,661.1,660.62,3.3916086]
[1752022522788,2.26597829,661.48,660.56,2.742]
[1752022522789,1.69871873,661.36,660.63,3.3916086]
[1752022522988,1.46798069,661.35,660.63,3.3916086]
[1752022523193,1.46798069,661.34,660.63,3.3916086]
[1752022523393,1.46798069,661.33,660.63,3.3916086]
[1752022523593,1.46798069,661.32,660.63,3.3916086]
[1752022523890,1.46798069,661.31,660.63,3.3916086]
[1752022524090,1.46798069,661.3,660.63,3.3916086]
[1752022524289,1.46798069,661.29,660.63,3.3916086]
[1752022524490,1.46798069,661.28,660.63,3.3916086]
[1752022524690,1.46798069,661.27,660.63,3.3916086]
[1752022524891,1.46798069,661.26,660.64,3.3916086]
[1752022525093,1.46798069,661.25,660.64,3.3916086]
[1752022525291,1.46798069,661.24,660.64,3.3916086]
[1752022525491,1.46798069,661.23,660.64,3.3916086]
[1752022525695,1.46798069,661.22,660.63,3.3916086]
[1752022525891,1.46798069,661.21,660.63,3.3916086]
[1752022526099,1.46798069,661.2,660.63,3.3916086]
[1752022526295,1.46798069,661.19,660.63,3.3916086]
[1752022526493,1.46798069,661.18,660.63,3.3916086]
[1752022526697,1.46798069,661.17,660.63,3.3916086]
[1752022526897,1.46798069,661.16,660.63,3.3916086]
[1752022527092,1.46798069,661.15,660.63,3.3916086]
[1752022527292,1.46798069,661.14,660.63,3.3916086]
[1752022527595,1.46798069,661.13,660.63,3.3916086]
[1752022527796,1.46798069,661.12,660.63,3.3916086]
[1752022527993,1.46798069,661.11,660.63,3.3916086]
[1752022528197,1.46798069,661.1,660.63,3.3916086]
[1752022528396,1.69871873,661.32,660.71,3.3916086]
[1752022528593,1.4687962,661.31,660.71,3.3916086]
[1752022528797,1.4687962,661.3,660.71,3.3916086]
[1752022529096,1.69871873,661.32,660.71,3.3916086]
[1752022529097,1.4687962,661.29,660.71,3.3916086]
[1752022529292,1.4687962,661.28,660.71,3.3916086]
[1752022529496,1.4687962,661.27,660.74,3.3916086]
[1752022529797,1.4687962,661.26,660.74,3.3916086]
[1752022530094,1.4687962,661.25,660.74,3.3916086]
[1752022530399,1.4687962,661.24,660.74,3.3916086]
[1752022530597,1.4687962,661.23,660.74,3.3916086]
[1752022530798,1.4687962,661.22,660.74,3.3916086]
[1752022531093,1.4687962,661.21,660.74,3.3916086]
[1752022531293,1.4687962,661.2,660.74,3.3916086]
[1752022531593,1.4687962,661.19,660.74,3.3916086]
[1752022531792,1.4687962,661.18,660.74,3.3916086]
[1752022531996,1.4687962,661.17,660.73,3.3916086]
[1752022532192,1.69871873,661.31,660.56,2.742]
[1752022532193,1.4687962,661.16,660.74,3.3916086]
[1752022532396,1.4687962,661.15,660.73,3.3916086]
[1752022532597,1.4687962,661.14,660.73,3.3916086]
[1752022532798,1.4687962,661.13,660.73,3.3916086]
[1752022532998,1.4687962,661.12,660.72,3.3916086]
[1752022533294,1.4687962,661.11,660.72,3.3916086]
[1752022533495,1.4687962,661.1,660.72,3.3916086]
[1752022533694,1.4687962,661.09,660.72,3.3916086]
[1752022533899,1.69871873,661.3,660.72,3.3916086]
[1752022534096,1.46907557,661.29,660.72,3.3916086]
[1752022534295,1.46907557,661.28,660.73,3.3916086]
[1752022534595,1.46907557,661.27,660.73,3.3916086]
[1752022534799,1.46907557,661.26,660.73,3.3916086]
[1752022535001,1.46907557,661.25,660.72,3.3916086]
[1752022535199,1.46907557,661.24,660.72,3.3916086]
[1752022535402,1.69871873,661.3,660.72,3.3916086]
[1752022535403,1.46907557,661.23,660.72,3.3916086]
[1752022535601,1.46907557,661.22,660.75,3.3916086]
[1752022535901,1.46907557,661.21,660.75,3.3916086]
[1752022536100,1.46907557,661.2,660.75,3.3916086]
[1752022536297,1.46907557,661.19,660.75,3.3916086]
[1752022536499,1.46907557,661.18,660.75,3.3916086]
[1752022536697,1.46907557,661.17,660.75,3.3916086]
[1752022536902,1.46907557,661.16,660.75,3.3916086]
[1752022537102,1.46907557,661.15,660.75,3.3916086]
[1752022537299,1.46907557,661.14,660.75,3.3916086]
[1752022537504,1.46907557,661.13,660.75,3.3916086]
[1752022537703,1.46907557,661.12,660.75,3.3916086]
[1752022537899,1.46907557,661.11,660.75,3.3916086]
[1752022538104,1.69871873,661.29,660.75,3.3916086]
[1752022538304,1.69871873,661.28,660.75,3.3916086]
[1752022538804,1.69871873,661.3,660.88,2.2613528]
[1752022542906,1.69871873,661.34,660.91,2.2613528]
[1752022547906,1.69871873,661.34,660.92,1.854]
[1752022552715,1.69871873,661.26,660.92,1.854]
[1752022556013,2.26597829,661.36,660.92,1.854]
[1752022556218,1.70045236,661.26,660.92,1.854]
[1752022565025,1.70045236,661.26,660.84,2.2613528]
[1752022566427,1.70045236,661.28,660.81,2.2613528]
[1752022567828,1.70045236,661.28,660.82,2.258]
[1752022568029,1.70045236,661.27,660.83,2.2613528]
[1752022572831,1.70045236,661.27,660.82,4.5193528]
[1752022576333,1.70045236,661.26,660.84,2.2613528]
[1752022576536,1.70045236,661.27,660.82,2.258]
[1752022578833,1.70045236,661.28,660.82,2.258]
[1752022579836,1.70045236,661.27,660.82,2.258]
[1752022580341,1.70045236,661.28,660.82,2.258]
[1752022580638,1.70045236,661.31,660.82,2.258]
[1752022582939,1.70045236,661.3,660.82,2.258]
[1752022585544,1.70045236,661.31,660.82,2.258]
[1752022586539,1.70045236,661.3,660.82,2.258]
[1752022590342,1.70045236,661.27,660.82,4.5193528]
[1752022590546,1.70045236,661.27,660.83,2.2613528]
[1752022590746,1.70045236,661.27,660.82,4.5193528]
[1752022592848,1.70045236,661.32,660.88,2.2613528]
[1752022593445,1.70045236,661.32,660.87,2.2613528]
[1752022594349,1.70045236,661.31,660.88,2.2613528]
[1752022595452,1.70045236,661.31,660.89,2.2613528]
[1752022601351,1.70045236,661.31,660.88,2.2613528]
[1752022602857,1.70045236,661.31,660.82,2.258]
[1752022602858,1.70045236,661.26,660.83,2.2613528]
[1752022609167,1.70045236,661.27,660.82,2.258]
[1752022611067,1.70045236,661.28,660.82,2.258]
[1752022614872,1.70045236,661.29,660.82,2.258]
[1752022615774,1.70045236,661.29,660.76,2.2613528]
[1752022616073,1.70045236,661.3,660.76,2.2613528]
[1752022616274,1.70045236,661.29,660.76,2.2613528]
[1752022618473,1.70045236,661.29,660.77,4.5523528]
[1752022618977,1.70045236,661.29,660.78,2.2613528]
[1752022620975,1.70045236,661.28,660.78,2.2613528]
[1752022622876,1.70045236,661.3,660.8,2.2613528]
[1752022623378,1.70045236,661.31,660.79,2.2613528]
[1752022623677,1.70045236,661.31,660.77,2.291]
[1752022623678,1.70045236,661.31,660.77,4.5523528]
[1752022624783,1.70045236,661.3,660.8,2.2613528]
[1752022627683,1.70045236,661.3,660.81,2.2613528]
[1752022627986,1.70045236,661.3,660.8,2.2613528]
[1752022632890,1.70045236,661.34,660.83,2.2613528]
[1752022633191,1.70045236,661.33,660.84,2.2613528]
[1752022633587,1.70045236,661.32,660.87,2.2613528]
[1752022636689,1.70045236,661.32,660.88,1.785]
[1752022637292,1.70045236,661.31,660.88,4.0463528]
[1752022642301,1.70045236,661.32,660.88,1.785]
[1752022642901,1.70045236,661.27,660.88,1.785]
[1752022643101,1.70045236,661.26,660.88,1.785]
[1752022643501,1.70045236,661.27,660.88,1.785]
[1752022647599,1.70045236,661.28,660.88,1.785]
[1752022652204,1.70045236,661.27,660.88,1.785]
[1752022652899,1.70045236,661.28,660.88,1.785]
[1752022653500,1.70045236,661.27,660.88,1.785]
[1752022657609,1.70045236,661.26,660.88,1.785]
[1752022662010,1.70045236,661.28,660.88,1.785]
[1752022662713,1.70045236,661.27,660.88,1.785]
[1752022663214,1.70045236,661.28,660.88,1.785]
[1752022669524,1.70045236,661.28,660.75,2.2613528]
[1752022670722,1.70045236,661.28,660.66,0.26313203]
[1752022670723,1.70045236,661.28,660.7,2.2613528]
[1752022670924,1.70045236,661.3,660.7,2.2613528]
[1752022672023,1.70045236,661.3,660.71,2.2613528]
[1752022672227,1.70045236,661.3,660.71,4.8533528]
[1752022673021,1.70045236,661.29,660.72,2.2613528]
[1752022679330,1.70045236,661.31,660.71,2.592]
[1752022680827,1.70045236,661.3,660.71,2.592]
[1752022682831,0.26313203,661.77,660.76,2.2613528]
[1752022682832,1.70045236,661.36,660.76,2.2613528]
[1752022689129,1.70045236,661.35,660.8,2.2613528]
[1752022689330,1.70045236,661.34,660.82,2.2613528]
[1752022689533,1.70045236,661.33,660.84,2.2613528]
[1752022690030,1.70045236,661.32,660.86,2.2613528]
[1752022690733,1.70045236,661.41,660.71,2.592]
[1752022691433,1.70045236,661.39,660.71,2.592]
[1752022692937,1.70045236,661.34,660.71,2.592]
[1752022695233,1.70045236,661.34,660.66,0.26313203]
[1752022696741,1.70045236,661.4,660.66,0.26313203]
[1752022697643,1.70045236,661.4,660.67,1.907]
[1752022697839,1.70045236,661.39,660.67,1.907]
[1752022698342,1.70045236,661.4,660.67,1.907]
[1752022698644,1.70045236,661.35,660.7,2.2613528]
[1752022699143,1.70045236,661.33,660.75,2.2613528]
[1752022700444,1.70045236,661.32,660.77,2.2613528]
[1752022702441,1.70045236,661.31,660.79,2.2613528]
[1752022703048,1.70045236,661.32,660.8,2.2613528]
[1752022704350,1.70045236,661.33,660.8,2.2613528]
[1752022704552,1.70045236,661.35,660.75,2.2613528]
[1752022704847,1.70045236,661.34,660.75,2.2613528]
[1752022705153,1.70045236,661.35,660.74,2.2613528]
[1752022709254,1.70045236,661.35,660.67,1.907]
[1752022709255,1.70045236,661.36,660.73,2.2613528]
[1752022709451,1.70045236,661.36,660.71,2.2613528]
[1752022710252,1.70045236,661.36,660.72,2.2613528]
[1752022712660,1.70045236,661.37,660.71,2.2613528]
[1752022712961,1.70045236,661.36,660.71,2.2613528]
[1752022714362,1.70045236,661.35,660.74,2.2613528]
[1752022715061,1.70045236,661.35,660.75,2.2613528]
[1752022717164,1.70045236,661.35,660.76,2.2613528]
[1752022717965,1.70045236,661.34,660.76,2.2613528]
[1752022718864,1.70045236,661.34,660.77,2.2613528]
[1752022719361,1.70045236,661.33,660.79,2.2613528]
[1752022722066,1.70045236,661.33,660.8,2.2613528]
[1752022722564,1.70045236,661.31,660.83,2.2613528]
[1752022723366,1.70045236,661.32,660.83,2.2613528]
[1752022723866,1.70045236,661.32,660.67,1.907]
[1752022723867,1.70045236,661.33,660.81,2.2613528]
[1752022724467,1.70045236,661.35,660.76,2.2613528]
[1752022731976,1.70045236,661.35,660.77,2.2613528]
[1752022733073,1.70045236,661.4,660.82,2.2613528]
[1752022733773,1.70045236,661.39,660.83,2.2613528]
[1752022734378,1.70045236,661.37,660.89,2.2613528]
[1752022736583,1.70045236,661.36,660.88,2.2613528]
[1752022742980,1.70045236,661.3,660.83,2.2613528]
[1752022744781,1.70045236,661.31,660.83,2.2613528]
[1752022744986,1.70045236,661.31,660.82,2.2613528]
[1752022747692,1.70045236,661.31,660.83,2.2613528]
[1752022749393,1.70045236,661.3,660.83,2.2613528]
[1752022752996,1.70045236,661.31,660.84,2.2613528]
[1752022753295,1.70045236,661.31,660.83,2.2613528]
[1752022753896,1.70045236,661.31,660.82,2.2613528]
[1752022754296,1.70045236,661.31,660.83,2.2613528]
[1752022754692,1.70045236,661.3,660.85,2.2613528]
[1752022755194,1.70045236,661.3,660.86,2.058]
[1752022756298,1.70045236,661.29,660.86,4.3193528]
[1752022760900,1.70045236,661.33,660.86,2.058]
[1752022761203,1.70045236,661.37,660.86,2.058]
[1752022761703,1.70045236,661.38,660.86,2.058]
[1752022762203,1.70045236,661.39,660.86,2.058]
[1752022765403,1.70045236,661.4,660.86,2.058]
[1752022766109,1.70045236,661.41,660.86,2.058]
[1752022766504,1.08435109,661.59,660.86,2.058]
[1752022766505,1.70045236,661.4,660.86,2.058]
[1752022766904,1.70045236,661.41,660.86,2.058]
[1752022768310,1.70045236,661.42,660.86,2.058]
[1752022768505,1.70045236,661.41,660.86,2.058]
[1752022769210,1.70045236,661.47,660.86,2.058]
[1752022770008,1.70045236,661.49,660.86,2.058]
[1752022770212,1.70045236,661.5,660.86,2.058]
[1752022772314,1.70045236,661.49,660.86,2.058]
[1752022772916,1.70045236,661.52,660.86,2.058]
[1752022773212,1.70045236,661.52,660.74,2.2613528]
[1752022774016,1.70045236,661.52,660.75,2.2613528]
[1752022774413,1.70045236,661.53,660.74,2.2613528]
[1752022775218,1.70045236,661.52,660.76,2.2613528]
[1752022775813,1.70045236,661.52,660.77,1.743]